{"text_format":"1","workbook":"xlsx","n_sheets":4,"sheets":["formular","cesta","ciselnik","data"],"not_rendered":{"charts":0,"images":3,"macros":1,"external_links":0,"defined_names":0,"comments":0,"pivot_tables":0},"unopened":[],"bounds":{"document_bytes":16777216,"sheet_cells":100000,"rows_first":2000,"rows_last":500,"rows_between":2000,"halvings":0,"cell_chars":16384,"cell_head_chars":4096},"cells_cut":0,"cells_raw":0,"read":"whole","date_system":"1900"}

{"sheet":"formular","index":0,"n_rows":65,"n_cols":33,"rows_kept":65,"cut":false,"hidden":false,"merged":[[9,19,9,21],[15,23,16,24],[17,23,18,24],[48,7,51,10],[45,4,51,6],[30,7,31,10],[17,19,18,19],[15,19,16,19],[26,16,29,18],[31,16,34,18],[33,19,34,19],[20,19,21,19],[22,19,23,19],[20,15,23,15],[36,22,37,24],[65,3,70,24],[49,15,49,16],[32,7,34,10],[35,7,36,10],[38,7,39,10],[38,4,42,6],[38,3,42,3],[53,4,56,6],[58,4,61,6],[53,3,56,3],[58,3,61,3],[31,19,32,19],[45,3,51,3],[40,23,40,24],[36,15,37,17],[29,4,36,6],[2,3,4,10],[5,3,6,10],[13,11,13,12],[16,7,17,10],[18,7,19,10],[16,12,17,12],[18,12,19,12],[9,6,9,9],[29,3,36,3],[26,15,29,15],[31,15,34,15],[13,23,13,24],[9,3,9,5],[9,10,9,12],[20,12,21,12],[20,7,21,10],[20,16,23,18],[15,3,21,3],[15,4,21,6],[23,4,26,6],[22,3,27,3],[15,16,18,18],[15,15,18,15],[12,14,21,14]]}
[]
[]
[null,null,null,"Skóre potřeby paliativní péče u dětí ",null,null,null,null,null,null,null,null,null,null,null,null,null,null,null,null,null,null,null,null,null,null,null,null,null,null,null,null,"d01C-skore-potreby"]
[]
[]
[null,null,null,"Paediatric palliative screening scale (PaPaS Scale)"]
[]
[]
[null,null,null,"Jméno",null,null,"Příjmení",null,null,null,"Rodné číslo (bez lomítka)",null,null,null,null,"Věk",null,"Pohlaví",null,"Datum a čas vyplnění"]
[null,null,null,"Anežka",null,null,"Chlupová",null,null,null,"0361135709",null,null,null,null,15,null,null,null,"2019-08-31"]
[]
[]
[]
[null,null,null,"DOMÉNA",null,null,null,"CHARAKTERISTIKA",null,null,null,"SKÓRE",null,null,null,"DOMÉNA",null,null,null,"CHARAKTERISTIKA",null,null,null,"SKÓRE"]
[null,null,null,"Doména 1: Trajektorie onemocnění a vliv na denní aktivity dítěte",null,null,null,null,null,null,null,null,null,null,null,"Doména 4: Preference a potřeby pacienta či jeho rodiny a preference zdravotníků"]
[null,null,null,"1.1","Průběh onemocnění a vliv na denní aktivity dítěte (ve srovnání s baseline dítěte a s ohledem na poslední 4 týdny)",null,null,"Stabilní",null,null,null,null,null,null,null,"4.1","Pacient/rodina si přeje paliativní péči nebo vysloví potřeby, které nejlépe obstará paliativní péče",null,null,"Ne",null,null,null,"prosím odpovězte na 4.2"]
[null,null,null,null,null,null,null,"Pomalu se zhoršující stav bez vlivu na denní aktivity"]
[null,null,null,null,null,null,null,null,null,null,null,null,null,null,null,null,null,null,null,"Ano",null,null,null,"prosím vynechejte 4.2"]
[null,null,null,null,null,null,null,"Nestabilní s vlivem na denní aktivity a jejich omezením"]
[]
[null,null,null,null,null,null,null,"Významné zhoršování s výrazným omezením denních aktivit",null,null,null,null,null,null,null,"4.2","Vy/Váš tým má dojem, že by pacientovi prospěla paliativní péče",null,null,"Ne"]
[]
[null,null,null,"1.2",null,null,null,null,null,null,null,null,null,null,null,null,null,null,null,"Ano"]
[null,null,null,null,"Nárůst počtu hospotalizací (o 50 % více v posledních 3 měsících ve srovnáín s předchozím obdobím)",null,null,"Ne"]
[]
[null,null,null,null,null,null,null,null,null,null,null,null,null,null,null,"Doména 5: Předpokládaná délka života"]
[null,null,null,null,null,null,null,"Ano",null,null,null,null,null,null,null,"5.1","Předpokládaná délka života",null,null,"Několik let",null,null,null,"prosím odpovězde na 5.2"]
[null,null,null,null,null,null,null,null,null,null,null,null,null,null,null,null,null,null,null,"Měsíce či 1–2 roky",null,null,null,"prosím odpovězte na 5.2"]
[null,null,null,"Doména 2: Očekávaný výsledek cílené léčby základního onemocnění a zátěž léčby",null,null,null,null,null,null,null,null,null,null,null,null,null,null,null,"Týdny až měsíce",null,null,null,"prosím vynechejte 5.2"]
[null,null,null,"2.1","Léčba cílená na základní onemocnění (kromě léčby komplikací základní léčby - např. bolest, dyspnoe, únava)",null,null,"Očekává se vyléčení",null,null,null,null,null,null,null,null,null,null,null,"Dny až týdny",null,null,null,"prosím vynechejte 5.2"]
[null,null,null,null,null,null,null,"Léčba zabrání progresi onemocnění a prodlouží život v dobré kvalitě"]
[null,null,null,null,null,null,null,null,null,null,null,null,null,null,null,"5.2","Byl byste překvapen, kdyby toto dítě náhle zemřelo v průběhu příštích 6 měsíců?",null,null,"Ano"]
[null,null,null,null,null,null,null,"Neočekává se vyléčení ani zastavení progrese, ale léčba má pozitivní efekt na kvalitu života"]
[null,null,null,null,null,null,null,null,null,null,null,null,null,null,null,null,null,null,null,"Ne"]
[]
[null,null,null,null,null,null,null,"Léčba nepomůže a nezlepší ani kvalitu života"]
[null,null,null,null,null,null,null,null,null,null,null,null,null,null,null,"Součet",null,null,null,null,null,null,{"$f":"data!B57","v":32}]
[]
[null,null,null,"2.2","Zátěž léčby (zátěž znamená hlavní nežádoucí účinky léčby a další nepříjemnosti z hlediska dítěte či rodiče jako je např. hospitalizace)",null,null,"Žádná či minimální zátěž nebo není kausální léčba možná"]
[]
[null,null,null,null,null,null,null,"Nízká zátěž",null,null,null,null,null,null,null,"PaPaS SKÓRE",null,null,"NEBO JINÉ OKOLNOSTI"]
[null,null,null,null,null,null,null,"Střední zátěž",null,null,null,null,null,null,null,"1. začněte mluvit o paliativní péči"]
[null,null,null,null,null,null,null,"Vysoká zátěž",null,null,null,null,null,null,null,"10–14",null,"pacient nebo rodina si přejí paliativní péči"]
[]
[null,null,null,"Doména 3: Symptomová zátěž",null,null,null,null,null,null,null,null,null,null,null,"2. oslovte paliativní tým"]
[null,null,null,"3.1","Intenzita symptomů nebo obtížnost jejich tlumení",null,null,"Pacient je asymptomatický",null,null,null,null,null,null,null,"15–24",null,"očekávaná délka života méně než 1 rok"]
[null,null,null,null,null,null,null,"Symptomy jsou lehké a snadno kontrolovatelné",null,null,null,null,null,null,null,null,null,"přítomná komorbidita"]
[null,null,null,null,null,null,null,"Jakýkoliv symptom je mírný a lze ho kontrolovat",null,null,null,null,null,null,null,null,null,"léčba prodlouží život, ale nevyléčí"]
[null,null,null,null,null,null,null,"Jakýkoliv symptom je závažný nebo obtížně zvladatelný (např. nutné neplánované hospotalizace, ambulantní kontroly, symptomatické krize)",null,null,null,null,null,null,null,null,null,"pacient nebo rodina si přejí paliativní péči"]
[]
[null,null,null,null,null,null,null,null,null,null,null,null,null,null,null,"3. dominuje paliativní péče"]
[null,null,null,null,null,null,null,null,null,null,null,null,null,null,null,"25–42",null,"úmrtí do 6 měsíců možné"]
[null,null,null,null,null,null,null,null,null,null,null,null,null,null,null,null,null,"vysoká symptomová zátěž ± malé terapeutické možnosti"]
[null,null,null,"3.2","Psychologická nepohoda pacienta spojená se symptomy",null,null,"Není",null,null,null,null,null,null,null,null,null,"rychlé zhoršování stavu"]
[null,null,null,null,null,null,null,"Lehká",null,null,null,null,null,null,null,null,null,"střední nebo vysoká symptomová zátěž"]
[null,null,null,null,null,null,null,"Mírná",null,null,null,null,null,null,null,null,null,"pacient nebo rodina si přejí paliativní péči"]
[null,null,null,null,null,null,null,"Závažná",null,null,null,null,null,null,null,null,null,"vysoká míra psychologického stresu pro pacienta nebo rodinu"]
[]
[null,null,null,"3.3","Psychologická nepohoda rodičů či rodiny vlivem příznaků nemocného dítěte nebo jeho utrpení",null,null,"Není"]
[null,null,null,null,null,null,null,"Lehká"]
[null,null,null,null,null,null,null,"Mírná",null,null,null,null,null,null,null,null,null,null,null,null,null,null,null,null,"Přeloženo dle Bergstraesser, E., et al. (2013)"]
[null,null,null,null,null,null,null,"Závažná"]
[]
[]
[null,null,null,"Komentář"]

{"sheet":"cesta","index":1,"n_rows":14,"n_cols":3,"rows_kept":14,"cut":false,"hidden":false,"merged":[[1,1,2,13],[9,2,10,12],[11,2,12,12]]}
[]
[]
[]
[]
[]
[]
[]
[]
[]
[null,null,"Sem zadejte cestu, kam chcete, aby se vám formulář uložil"]
[]
[]
[]
[null,null,"např.:C:\\Users\\novotny\\Documents\\elfis"]

{"sheet":"ciselnik","index":2,"n_rows":39,"n_cols":8,"rows_kept":39,"cut":false,"hidden":false,"merged":[[0,0,0,2]]}
["Vysvětlivky - data"]
[]
["Možnost","Kódování",null,"Pohlaví","Kódování"]
["Ano",1,null,"Muž",1]
["Ne",2,null,"Žena",2]
[]
[]
["Den","Kódování",null,"Měsíc","Kódování",null,"Rok","Kódování"]
[1,1,null,"Leden",1,null,2019,2019]
[2,2,null,"Únor",2,null,2020,2020]
[3,3,null,"Březen",3,null,2021,2021]
[4,4,null,"Duben",4,null,2022,2022]
[5,5,null,"Květen",5,null,2023,2023]
[6,6,null,"Červen",6]
[7,7,null,"Červenec",7]
[8,8,null,"Srpen",8]
[9,9,null,"Září",9]
[10,10,null,"Říjen",10]
[11,11,null,"Listopad",11]
[12,12,null,"Prosinec",12]
[13,13]
[14,14]
[15,15]
[16,16]
[17,17]
[18,18]
[19,19]
[20,20]
[21,21]
[22,22]
[23,23]
[24,24]
[25,25]
[26,26]
[27,27]
[28,28]
[29,29]
[30,30]
[31,31]

{"sheet":"data","index":3,"n_rows":57,"n_cols":86,"rows_kept":57,"cut":false,"hidden":false,"merged":[]}
["Skóre potřeby - děti",null,"Pomocné"]
["Jméno",{"$f":"formular!D10","v":"Anežka"}]
["Příjmení",{"$f":"formular!G10","v":"Chlupová"}]
["Rodné číslo",{"$f":"formular!K10","v":"0361135709"}]
["Věk",{"$f":"formular!P10","v":15}]
["Pohlaví",2]
["Datum a čas vyplnění",{"$f":"formular!$T$10","v":"2019-08-31"},null,null,null,null,{"$f":"B7","v":"2019-08-31"}]
["Doména 1"]
["1.1",null,null,null,null,null,"2019-08-31"]
["Stabilní",{"$f":"IF(C10=TRUE,0,\"-\")","v":"-"},null,null,null,null,"8-31-2019-12-00-00","11-18-2019-10-06-04",null,null,null,null,null,null,null,null,null,null,null,null,null,null,null,null,null,null,null,null,null,null,null,null,null,null,null,null,null,null,null,null,null,null,null,null,null,null,null,null,null,null,null,null,null,null,null,null,null,null,null,null,null,null,null,null,null,null,null,null,null,null,null,null,null,null,null,null,null,null,null,null,8,31,2019,12,0,0]
["Pomalu se zhoršující stav",{"$f":"IF(C11=TRUE,1,\"-\")","v":"-"}]
["Nestabilní s vlivem",{"$f":"IF(C12=TRUE,2,\"-\")","v":2},true]
["Významné zhoršování",{"$f":"IF(C13=TRUE,4,\"-\")","v":"-"}]
["1.2"]
["Ne",{"$f":"IF(C15=TRUE,0,\"-\")","v":"-"}]
["Ano",{"$f":"IF(C16=TRUE,3,\"-\")","v":3},true]
["2.1"]
["Očekává se",{"$f":"IF(C18=TRUE,0,\"-\")","v":"-"}]
["Léčba zabrání",{"$f":"IF(C19=TRUE,1,\"-\")","v":"-"}]
["Neočekává se",{"$f":"IF(C20=TRUE,2,\"-\")","v":"-"}]
["Léčba nepomůže",{"$f":"IF(C21=TRUE,4,\"-\")","v":4},true]
["2.2"]
["Žádná či minmální",{"$f":"IF(C23=TRUE,0,\"-\")","v":"-"}]
["Nízká",{"$f":"IF(C24=TRUE,1,\"-\")","v":"-"}]
["Střední ",{"$f":"IF(C25=TRUE,2,\"-\")","v":"-"}]
["Vysoká",{"$f":"IF(C26=TRUE,4,\"-\")","v":4},true]
["3.1"]
["Pacient je",{"$f":"IF(C28=TRUE,0,\"-\")","v":"-"}]
["Symptomy",{"$f":"IF(C29=TRUE,1,\"-\")","v":"-"}]
["Jakýkoliv symptom je mírný",{"$f":"IF(C30=TRUE,2,\"-\")","v":"-"}]
["Jakýkoliv symptom je závažný",{"$f":"IF(C31=TRUE,4,\"-\")","v":4},true]
["3.2"]
["Není",{"$f":"IF(C33=TRUE,0,\"-\")","v":"-"}]
["Lehká",{"$f":"IF(C34=TRUE,1,\"-\")","v":1},true]
["Mírná",{"$f":"IF(C35=TRUE,2,\"-\")","v":"-"}]
["Závažná",{"$f":"IF(C36=TRUE,4,\"-\")","v":"-"}]
["3.3"]
["Není",{"$f":"IF(C38=TRUE,0,\"-\")","v":"-"}]
["Lehká",{"$f":"IF(C39=TRUE,1,\"-\")","v":"-"}]
["Mírná",{"$f":"IF(C40=TRUE,2,\"-\")","v":"-"}]
["Závažná",{"$f":"IF(C41=TRUE,4,\"-\")","v":4},true]
["4.1"]
["Ne",{"$f":"IF(C43=TRUE,0,\"-\")","v":"-"}]
["Ano",{"$f":"IF(C44=TRUE,4,\"-\")","v":4},true]
["4.2"]
["Ne",{"$f":"IF(C46=TRUE,0,\"-\")","v":"-"}]
["Ano",{"$f":"IF(C47=TRUE,4,\"-\")","v":"-"},false]
["5.1"]
["Několik let",{"$f":"IF(C49=TRUE,0,\"-\")","v":"-"}]
["Měsíce či 1-2 roky",{"$f":"IF(C50=TRUE,1,\"-\")","v":"-"}]
["Týdny až měsíce",{"$f":"IF(C51=TRUE,3,\"-\")","v":"-"}]
["Dny až týdny",{"$f":"IF(C52=TRUE,4,\"-\")","v":4},true]
["5.2"]
["Ano",{"$f":"IF(C54=TRUE,0,\"-\")","v":"-"}]
["Ne",{"$f":"IF(C55=TRUE,2,\"-\")","v":2},true]
["Komentář",{"$f":"formular!D66","v":0}]
["Součet skore",{"$f":"SUM(B8:B55)","v":32}]